[Event "9e Open International de Porticcio"]
[Site "Porticcio, France"]
[Date "2024.06.30"]
[Round "3.8"]
[White "Priansh Das"]
[Black "Nevednichy, Vladislav"]
[Result "0-1"]
[TimeControl "1h30+30s/move"]
[WhiteElo "2263"]
[BlackElo "2471"]

1. e4 {[%clk 01:30:56]} {[%emt 00:00:03]} c5 {[%clk 01:30:19]} {[%emt
00:00:42]} 2. Nf3 {[%clk 01:31:12]} {[%emt 00:00:13]} d6 {[%clk 01:30:04]}
{[%emt 00:00:45]} 3. Bb5+ {[%clk 01:29:39]} {[%emt 00:02:03]} Nd7 {[%clk
01:30:22]} {[%emt 00:00:13]} 4. O-O {[%clk 01:29:59]} {[%emt 00:00:10]} Ngf6
{[%clk 01:30:21]} {[%emt 00:00:32]} 5. Re1 {[%clk 01:30:14]} {[%emt 00:00:14]}
a6 {[%clk 01:30:46]} {[%emt 00:00:05]} 6. Bd3 {[%clk 01:26:07]} {[%emt
00:04:36]} e5 {[%clk 01:26:36]} {[%emt 00:04:41]} 7. c3 {[%clk 01:25:59]}
{[%emt 00:00:38]} Be7 {[%clk 01:26:02]} {[%emt 00:01:02]} 8. Bc2 {[%clk
01:26:16]} {[%emt 00:00:14]} O-O {[%clk 01:26:20]} {[%emt 00:00:13]} 9. d4
{[%clk 01:26:35]} {[%emt 00:00:11]} b5 {[%clk 01:26:14]} {[%emt 00:00:36]} 10.
a4 {[%clk 01:25:20]} {[%emt 00:01:45]} Rb8 {[%clk 01:25:54]} {[%emt 00:00:50]}
11. d5 {[%clk 01:18:56]} {[%emt 00:06:53]} c4 {[%clk 01:21:14]} {[%emt
00:05:10]} 12. Nbd2 {[%clk 01:17:32]} {[%emt 00:01:54]} Nc5 {[%clk 01:18:47]}
{[%emt 00:02:58]} 13. Nf1 {[%clk 01:15:07]} {[%emt 00:02:54]} Qc7 {[%clk
01:04:14]} {[%emt 00:15:03]} 14. axb5 {[%clk 01:14:38]} {[%emt 00:01:00]} axb5
{[%clk 01:04:40]} {[%emt 00:00:04]} 15. Ng3 {[%clk 01:15:01]} {[%emt 00:00:07]}
b4 {[%clk 00:59:38]} {[%emt 00:05:32]} 16. cxb4 {[%clk 01:10:07]} {[%emt
00:05:24]} Rxb4 {[%clk 00:59:54]} {[%emt 00:00:14]} 17. Qd2 {[%clk 01:06:53]}
{[%emt 00:03:44]} Qb6 {[%clk 00:56:31]} {[%emt 00:03:52]} 18. Qc3 {[%clk
01:05:42]} {[%emt 00:01:41]} Bd7 {[%clk 00:56:18]} {[%emt 00:00:44]} 19. Bd2
{[%clk 00:59:37]} {[%emt 00:06:34]} Rxb2 {[%clk 00:56:07]} {[%emt 00:00:41]} 20.
Reb1 {[%clk 00:59:00]} {[%emt 00:01:06]} Rxb1+ {[%clk 00:52:08]} {[%emt
00:04:30]} 21. Rxb1 {[%clk 00:59:18]} {[%emt 00:00:13]} Qa6 {[%clk 00:52:14]}
{[%emt 00:00:24]} 22. Ra1 {[%clk 00:58:57]} {[%emt 00:00:51]} Qb5 {[%clk
00:49:01]} {[%emt 00:03:43]} 23. Rb1 {[%clk 00:57:41]} {[%emt 00:01:46]} Nb3
{[%clk 00:47:53]} {[%emt 00:01:37]} 24. Bxb3 {[%clk 00:55:25]} {[%emt
00:02:47]} cxb3 {[%clk 00:48:18]} {[%emt 00:00:05]} 25. Qxb3 {[%clk 00:54:41]}
{[%emt 00:01:14]} Qxb3 {[%clk 00:47:49]} {[%emt 00:00:59]} 26. Rxb3 {[%clk
00:55:04]} {[%emt 00:00:06]} Ra8 {[%clk 00:47:54]} {[%emt 00:00:25]} 27. h3
{[%clk 00:55:22]} {[%emt 00:00:12]} Bd8 {[%clk 00:43:13]} {[%emt 00:05:11]} 28.
Ne1 {[%clk 00:51:40]} {[%emt 00:04:12]} h5 {[%clk 00:42:14]} {[%emt 00:01:28]}
29. Nf3 {[%clk 00:49:47]} {[%emt 00:02:23]} g6 {[%clk 00:40:45]} {[%emt
00:01:59]} 30. Bg5 {[%clk 00:47:50]} {[%emt 00:02:28]} Kg7 {[%clk 00:41:01]}
{[%emt 00:00:15]} 31. Nd2 {[%clk 00:47:02]} {[%emt 00:01:17]} Ra1+ {[%clk
00:38:52]} {[%emt 00:02:39]} 32. Rb1 {[%clk 00:46:38]} {[%emt 00:00:55]} Rxb1+
{[%clk 00:37:52]} {[%emt 00:01:30]} 33. Nxb1 {[%clk 00:47:02]} {[%emt
00:00:05]} Bb5 {[%clk 00:37:27]} {[%emt 00:00:55]} 34. Nd2 {[%clk 00:42:46]}
{[%emt 00:04:46]} Bd3 {[%clk 00:36:56]} {[%emt 00:01:01]} 35. Ngf1 {[%clk
00:40:15]} {[%emt 00:03:01]} Bb6 {[%clk 00:36:32]} {[%emt 00:00:54]} 36. Ng3
{[%clk 00:30:51]} {[%emt 00:09:55]} Bc5 {[%clk 00:32:57]} {[%emt 00:04:05]} 37.
Nb3 {[%clk 00:25:35]} {[%emt 00:05:46]} Ba7 {[%clk 00:33:12]} {[%emt 00:00:14]}
38. Nd2 {[%clk 00:22:14]} {[%emt 00:03:50]} Bb6 {[%clk 00:33:34]} {[%emt
00:00:08]} 39. Bh4 {[%clk 00:17:40]} {[%emt 00:05:04]} Nh7 {[%clk 00:30:23]}
{[%emt 00:03:40]} 40. Kh1 {[%clk 00:16:51]} {[%emt 00:01:20]} Kf8 {[%clk
00:25:40]} {[%emt 00:05:12]} 41. Ngf1 {[%clk 00:15:48]} {[%emt 00:01:34]} g5
{[%clk 00:25:50]} {[%emt 00:00:20]} 42. Bg3 {[%clk 00:16:13]} {[%emt 00:00:05]}
h4 {[%clk 00:26:16]} {[%emt 00:00:04]} 43. Bh2 {[%clk 00:16:37]} {[%emt
00:00:06]} Bxf2 {[%clk 00:26:40]} {[%emt 00:00:07]} 44. g4 {[%clk 00:16:02]}
{[%emt 00:01:05]} Nf6 {[%clk 00:13:47]} {[%emt 00:13:23]} 45. Kg2 {[%clk
00:16:13]} {[%emt 00:00:20]} Be1 {[%clk 00:13:47]} {[%emt 00:00:29]} 46. Kf3
{[%clk 00:16:16]} {[%emt 00:00:28]} Ke7 {[%clk 00:07:36]} {[%emt 00:06:41]} 47.
Ke3 {[%clk 00:15:30]} {[%emt 00:01:16]} Bb5 {[%clk 00:08:02]} {[%emt 00:00:04]}
48. Bg1 {[%clk 00:15:24]} {[%emt 00:00:35]} Nd7 {[%clk 00:06:14]} {[%emt
00:02:19]} 49. Bf2 {[%clk 00:14:54]} {[%emt 00:01:00]} Bxd2+ {[%clk 00:05:23]}
{[%emt 00:01:21]} 50. Nxd2 {[%clk 00:15:19]} {[%emt 00:00:06]} Nf8 {[%clk
00:05:46]} {[%emt 00:00:07]} 51. Kf3 {[%clk 00:09:45]} {[%emt 00:06:05]} Ng6
{[%clk 00:06:02]} {[%emt 00:00:13]} 52. Be3 {[%clk 00:10:09]} {[%emt 00:00:05]}
f6 {[%clk 00:06:16]} {[%emt 00:00:16]} 53. Kf2 {[%clk 00:10:26]} {[%emt
00:00:13]} Bd3 {[%clk 00:06:35]} {[%emt 00:00:12]} 54. Kf3 {[%clk 00:10:28]}
{[%emt 00:00:28]} Kd7 {[%clk 00:07:00]} {[%emt 00:00:05]} 55. Kf2 {[%clk
00:10:25]} {[%emt 00:00:30]} Kc7 {[%clk 00:07:26]} {[%emt 00:00:06]} 56. Kf3
{[%clk 00:10:23]} {[%emt 00:00:32]} Nf4 {[%clk 00:04:01]} {[%emt 00:03:56]} 57.
Bxf4 {[%clk 00:09:33]} {[%emt 00:01:20]} exf4 {[%clk 00:03:05]} {[%emt
00:01:26]} 58. Nb3 {[%clk 00:06:57]} {[%emt 00:03:06]} Bf1 {[%clk 00:03:15]}
{[%emt 00:00:18]} 59. Nd4 {[%clk 00:07:24]} {[%emt 00:00:04]} Bxh3 {[%clk
00:03:17]} {[%emt 00:00:28]} 60. Nb5+ {[%clk 00:03:36]} {[%emt 00:04:19]} Kd7
{[%clk 00:03:32]} {[%emt 00:00:15]} 61. Nc3 {[%clk 00:03:31]} {[%emt 00:00:34]}
Bf1 {[%clk 00:03:56]} {[%emt 00:00:06]} 62. Kf2 {[%clk 00:03:59]} {[%emt
00:00:02]} Bd3 {[%clk 00:04:14]} {[%emt 00:00:12]} 63. Kg2 {[%clk 00:04:14]}
{[%emt 00:00:16]} Kc7 {[%clk 00:04:28]} {[%emt 00:00:16]} 64. Kf3 {[%clk
00:04:37]} {[%emt 00:00:07]} h3 {[%clk 00:04:10]} {[%emt 00:00:47]} 65. Kf2
{[%clk 00:04:56]} {[%emt 00:00:11]} Kb6 {[%clk 00:04:21]} {[%emt 00:00:19]} 0-1

[Event "9e Open International de Porticcio"]
[Site "Porticcio, France"]
[Date "2024.06.30"]
[Round "3.10"]
[White "Bernardi, Nicolas"]
[Black "Bertuli, Roger"]
[Result "1/2-1/2"]
[TimeControl "1h30+30s/move"]
[WhiteElo "1832"]
[BlackElo "1940"]

1. e4 {[%clk 01:30:56]} {[%emt 00:00:02]} Nc6 {[%clk 01:30:53]} {[%emt
00:00:07]} 2. Nf3 {[%clk 01:31:07]} {[%emt 00:00:19]} d6 {[%clk 01:31:17]}
{[%emt 00:00:07]} 3. d4 {[%clk 01:31:13]} {[%emt 00:00:25]} Nf6 {[%clk
01:31:38]} {[%emt 00:00:08]} 4. Nc3 {[%clk 01:31:29]} {[%emt 00:00:14]} Bg4
{[%clk 01:31:57]} {[%emt 00:00:10]} 5. Be2 {[%clk 01:30:27]} {[%emt 00:01:33]}
e5 {[%clk 01:32:00]} {[%emt 00:00:27]} 6. dxe5 {[%clk 01:25:44]} {[%emt
00:05:14]} dxe5 {[%clk 01:32:18]} {[%emt 00:00:12]} 7. O-O {[%clk 01:20:03]}
{[%emt 00:06:10]} Qxd1 {[%clk 01:31:43]} {[%emt 00:00:53]} 8. Rxd1 {[%clk
01:20:22]} {[%emt 00:00:23]} Bxf3 {[%clk 01:32:06]} {[%emt 00:00:07]} 9. Bxf3
{[%clk 01:20:18]} {[%emt 00:00:34]} Nd4 {[%clk 01:31:56]} {[%emt 00:00:40]} 10.
Bg5 {[%clk 01:15:35]} {[%emt 00:05:13]} c6 {[%clk 01:30:24]} {[%emt 00:02:02]}
11. Rac1 {[%clk 01:12:23]} {[%emt 00:03:42]} O-O-O {[%clk 01:28:59]} {[%emt
00:01:54]} 12. Ne2 {[%clk 00:56:07]} {[%emt 00:16:45]} Nxf3+ {[%clk 01:27:58]}
{[%emt 00:01:32]} 13. gxf3 {[%clk 00:56:24]} {[%emt 00:00:14]} Be7 {[%clk
01:27:45]} {[%emt 00:00:42]} 14. Ng3 {[%clk 00:52:40]} {[%emt 00:04:13]} g6
{[%clk 01:26:15]} {[%emt 00:01:59]} 15. Nf1 {[%clk 00:44:27]} {[%emt 00:08:45]}
Rxd1 {[%clk 01:22:14]} {[%emt 00:04:28]} 16. Rxd1 {[%clk 00:44:29]} {[%emt
00:00:31]} Rd8 {[%clk 01:21:12]} {[%emt 00:01:32]} 17. Rxd8+ {[%clk 00:40:12]}
{[%emt 00:04:48]} Kxd8 {[%clk 01:21:23]} {[%emt 00:00:19]} 18. Ne3 {[%clk
00:38:34]} {[%emt 00:02:08]} Nd7 {[%clk 01:13:21]} {[%emt 00:08:31]} 19. Bxe7+
{[%clk 00:37:42]} {[%emt 00:01:22]} Kxe7 {[%clk 01:13:48]} {[%emt 00:00:02]} 20.
Kf1 {[%clk 00:34:37]} {[%emt 00:03:34]} Ke6 {[%clk 01:13:15]} {[%emt 00:01:04]}
21. Ke2 {[%clk 00:34:25]} {[%emt 00:00:43]} Nf6 {[%clk 01:08:53]} {[%emt
00:04:51]} 22. Ng2 {[%clk 00:30:09]} {[%emt 00:04:46]} Nh5 {[%clk 01:06:09]}
{[%emt 00:03:14]} 23. Ke3 {[%clk 00:27:23]} {[%emt 00:03:17]} g5 {[%clk
01:05:17]} {[%emt 00:01:22]} 24. c3 {[%clk 00:14:51]} {[%emt 00:13:03]} Ng7
{[%clk 01:01:28]} {[%emt 00:04:17]} 25. Ne1 {[%clk 00:14:01]} {[%emt 00:01:20]}
f5 {[%clk 01:01:04]} {[%emt 00:00:54]} 26. Nd3 {[%clk 00:12:53]} {[%emt
00:01:39]} f4+ {[%clk 00:59:36]} {[%emt 00:01:56]} 27. Ke2 {[%clk 00:12:41]}
{[%emt 00:00:42]} Kd6 {[%clk 00:58:58]} {[%emt 00:01:08]} 28. Nc1 {[%clk
00:10:47]} {[%emt 00:02:25]} Ne6 {[%clk 00:56:34]} {[%emt 00:02:53]} 29. Kd2
{[%clk 00:10:02]} {[%emt 00:01:16]} a5 {[%clk 00:52:40]} {[%emt 00:04:24]} 30.
b3 {[%clk 00:06:29]} {[%emt 00:04:03]} b5 {[%clk 00:51:34]} {[%emt 00:01:36]}
31. a3 {[%clk 00:05:30]} {[%emt 00:01:30]} c5 {[%clk 00:49:39]} {[%emt
00:02:24]} 32. Kc2 {[%clk 00:02:59]} {[%emt 00:03:02]} h5 {[%clk 00:47:38]}
{[%emt 00:02:30]} 33. h3 {[%clk 00:03:11]} {[%emt 00:00:18]} b4 {[%clk
00:42:52]} {[%emt 00:05:17]} 34. axb4 {[%clk 00:02:43]} {[%emt 00:00:58]} cxb4
{[%clk 00:42:06]} {[%emt 00:01:15]} 35. Ne2 {[%clk 00:02:56]} {[%emt 00:00:17]}
Kc5 {[%clk 00:36:21]} {[%emt 00:06:15]} 36. Kd3 {[%clk 00:01:50]} {[%emt
00:01:36]} bxc3 {[%clk 00:34:42]} {[%emt 00:02:09]} 37. Kxc3 {[%clk 00:02:10]}
{[%emt 00:00:10]} Nc7 {[%clk 00:34:22]} {[%emt 00:00:50]} 38. Kc2 {[%clk
00:00:34]} {[%emt 00:02:06]} Kb4 {[%clk 00:32:51]} {[%emt 00:02:01]} 39. Kb2
{[%clk 00:00:34]} {[%emt 00:00:31]} Nb5 {[%clk 00:30:09]} {[%emt 00:03:11]} 40.
Nc1 {[%clk 00:00:38]} {[%emt 00:00:26]} Kc5 {[%clk 00:29:10]} {[%emt 00:01:29]}
41. Ne2 {[%clk 00:00:34]} {[%emt 00:00:35]} Kb4 {[%clk 00:23:47]} {[%emt
00:05:52]} 42. Nc1 {[%clk 00:00:56]} {[%emt 00:00:08]} Kc5 {[%clk 00:23:51]}
{[%emt 00:00:26]} 43. Ne2 {[%clk 00:01:18]} {[%emt 00:00:07]} Nd4 {[%clk
00:16:56]} 44. Nc1 {[%emt 00:07:58]} Kb4 {[%emt 00:00:16]} 45. Ne2 Kc5 {[%emt
00:00:16]} 46. Nc1 1/2-1/2

[Event "9e Open International de Porticcio"]
[Site "Porticcio, France"]
[Date "2024.07.01"]
[Round "4.1"]
[White "Druska, Juraj"]
[Black "Bailet, Pierre"]
[Result "1/2-1/2"]
[TimeControl "1h30+30s/move"]
[WhiteElo "2466"]
[BlackElo "2491"]

1. e4 {[%clk 01:30:57]} {[%emt 00:00:02]} e5 {[%clk 01:27:23]} {[%emt
00:03:36]} 2. Nf3 {[%clk 01:30:55]} {[%emt 00:00:33]} Nc6 {[%clk 01:27:34]}
{[%emt 00:00:18]} 3. Nc3 {[%clk 01:31:10]} {[%emt 00:00:16]} Nf6 {[%clk
01:27:39]} {[%emt 00:00:25]} 4. a4 {[%clk 01:30:55]} {[%emt 00:00:46]} d6
{[%clk 01:25:07]} {[%emt 00:03:01]} 5. d4 {[%clk 01:31:01]} {[%emt 00:00:24]}
exd4 {[%clk 01:23:58]} {[%emt 00:01:39]} 6. Nxd4 {[%clk 01:31:21]} {[%emt
00:00:10]} Be7 {[%clk 01:23:50]} {[%emt 00:00:37]} 7. Bb5 {[%clk 01:22:26]}
{[%emt 00:09:26]} Bd7 {[%clk 01:23:22]} {[%emt 00:00:57]} 8. O-O {[%clk
01:22:38]} {[%emt 00:00:19]} O-O {[%clk 01:22:56]} {[%emt 00:00:55]} 9. Re1
{[%clk 01:21:42]} {[%emt 00:01:26]} a6 {[%clk 01:14:22]} {[%emt 00:09:04]} 10.
Bxc6 {[%clk 01:14:27]} {[%emt 00:07:46]} bxc6 {[%clk 01:11:30]} {[%emt
00:03:21]} 11. Qf3 {[%clk 01:13:14]} {[%emt 00:01:44]} c5 {[%clk 01:06:58]}
{[%emt 00:05:02]} 12. Nf5 {[%clk 01:13:05]} {[%emt 00:00:39]} Bxf5 {[%clk
01:07:16]} {[%emt 00:00:11]} 13. Qxf5 {[%clk 01:12:24]} {[%emt 00:01:12]} Rb8
{[%clk 01:03:19]} {[%emt 00:04:26]} 14. b3 {[%clk 01:10:48]} {[%emt 00:02:07]}
Re8 {[%clk 00:55:30]} {[%emt 00:08:18]} 15. Bg5 {[%clk 00:53:49]} {[%emt
00:17:30]} h6 {[%clk 00:50:08]} {[%emt 00:05:52]} 16. Bh4 {[%clk 00:54:07]}
{[%emt 00:00:12]} Qc8 {[%clk 00:47:34]} {[%emt 00:03:03]} 17. Qxc8 {[%clk
00:52:59]} {[%emt 00:01:39]} Rbxc8 {[%clk 00:45:46]} {[%emt 00:02:18]} 18. e5
{[%clk 00:41:12]} {[%emt 00:12:17]} dxe5 {[%clk 00:45:47]} {[%emt 00:00:28]} 19.
Rxe5 {[%clk 00:41:31]} {[%emt 00:00:11]} g5 {[%clk 00:44:23]} {[%emt 00:01:53]}
20. Bg3 {[%clk 00:38:13]} {[%emt 00:03:49]} Ng4 {[%clk 00:36:10]} {[%emt
00:08:42]} 21. Rf5 {[%clk 00:37:35]} {[%emt 00:01:08]} Bf6 {[%clk 00:35:40]}
{[%emt 00:00:59]} 22. Rxc5 {[%clk 00:37:10]} {[%emt 00:00:56]} Bd4 {[%clk
00:33:31]} {[%emt 00:02:39]} 23. Rc4 {[%clk 00:37:34]} {[%emt 00:00:07]} c5
{[%clk 00:33:30]} {[%emt 00:00:31]} 24. h3 {[%clk 00:33:57]} {[%emt 00:04:07]}
Ne3 {[%clk 00:18:09]} {[%emt 00:15:50]} 25. fxe3 {[%clk 00:34:19]} {[%emt
00:00:09]} Rxe3 {[%clk 00:18:35]} {[%emt 00:00:04]} 26. Bf2 {[%clk 00:34:36]}
{[%emt 00:00:14]} Rxc3 {[%clk 00:18:53]} {[%emt 00:00:12]} 27. Rd1 {[%clk
00:33:35]} {[%emt 00:01:31]} Rxc4 {[%clk 00:18:55]} {[%emt 00:00:28]} 28. bxc4
{[%clk 00:34:03]} {[%emt 00:00:02]} Bxf2+ {[%clk 00:17:20]} {[%emt 00:02:04]}
29. Kxf2 {[%clk 00:34:27]} {[%emt 00:00:06]} Rb8 {[%clk 00:14:34]} {[%emt
00:03:16]} 30. Rd5 {[%clk 00:32:22]} {[%emt 00:02:36]} Rb2 {[%clk 00:14:08]}
{[%emt 00:00:56]} 31. Rxc5 {[%clk 00:33:14]} {[%emt 00:00:09]} Rxc2+ {[%clk
00:15:01]} {[%emt 00:00:05]} 32. Kf3 {[%clk 00:33:35]} {[%emt 00:00:09]} Kg7
{[%clk 00:15:12]} {[%emt 00:00:19]} 33. Rc6 {[%clk 00:30:59]} {[%emt 00:03:07]}
a5 {[%clk 00:13:39]} {[%emt 00:02:03]} 34. Rc5 {[%clk 00:31:13]} {[%emt
00:00:17]} Kg6 {[%clk 00:13:41]} {[%emt 00:00:28]} 35. Rxa5 {[%clk 00:30:29]}
{[%emt 00:01:15]} Rxc4 {[%clk 00:14:02]} {[%emt 00:00:07]} 36. Ra8 {[%clk
00:30:17]} {[%emt 00:00:42]} Rc3+ {[%clk 00:13:38]} {[%emt 00:00:55]} 37. Kf2
{[%clk 00:30:46]} {[%emt 00:00:01]} Rc2+ {[%clk 00:14:01]} {[%emt 00:00:07]} 38.
Kf3 {[%clk 00:31:11]} {[%emt 00:00:05]} Rc3+ {[%clk 00:14:27]} {[%emt
00:00:03]} 39. Kf2 {[%clk 00:31:37]} {[%emt 00:00:05]} Rc2+ {[%clk 00:14:52]}
{[%emt 00:00:05]} 40. Kf3 {[%clk 00:31:58]} {[%emt 00:00:08]} 1/2-1/2

[Event "9e Open International de Porticcio"]
[Site "Porticcio, France"]
[Date "2024.07.01"]
[Round "4.2"]
[White "Fedorchuk, Sergey A."]
[Black "Rakotomaharo, Fy Antenaina"]
[Result "1-0"]
[TimeControl "1h30+30s/move"]
[WhiteElo "2546"]
[BlackElo "2448"]

1. e4 {[%clk 01:30:56]} {[%emt 00:00:03]} c5 {[%clk 01:30:38]} {[%emt
00:00:22]} 2. Nf3 {[%clk 01:30:53]} {[%emt 00:00:33]} e6 {[%clk 01:30:54]}
{[%emt 00:00:15]} 3. d4 {[%clk 01:26:08]} {[%emt 00:05:14]} cxd4 {[%clk
01:31:16]} {[%emt 00:00:07]} 4. Nxd4 {[%clk 01:26:32]} {[%emt 00:00:07]} Nf6
{[%clk 01:31:25]} {[%emt 00:00:21]} 5. Nd2 {[%clk 01:23:27]} {[%emt 00:03:36]}
e5 {[%clk 01:15:23]} {[%emt 00:16:31]} 6. N4f3 {[%clk 01:18:39]} {[%emt
00:05:18]} Nc6 {[%clk 01:14:21]} {[%emt 00:01:33]} 7. Bb5 {[%clk 01:12:10]}
{[%emt 00:06:58]} Bc5 {[%clk 00:59:49]} {[%emt 00:15:02]} 8. O-O {[%clk
01:08:33]} {[%emt 00:04:06]} O-O {[%clk 00:56:41]} {[%emt 00:03:38]} 9. Bxc6
{[%clk 00:51:28]} {[%emt 00:17:36]} dxc6 {[%clk 00:56:01]} {[%emt 00:01:09]} 10.
Nxe5 {[%clk 00:51:51]} {[%emt 00:00:07]} Re8 {[%clk 00:56:12]} {[%emt
00:00:19]} 11. Nd3 {[%clk 00:51:43]} {[%emt 00:00:38]} Bg4 {[%clk 00:55:35]}
{[%emt 00:01:07]} 12. Qe1 {[%clk 00:50:14]} {[%emt 00:01:59]} Bb6 {[%clk
00:55:39]} {[%emt 00:00:26]} 13. Kh1 {[%clk 00:49:48]} {[%emt 00:00:56]} Nxe4
{[%clk 00:46:27]} {[%emt 00:09:42]} 14. Nxe4 {[%clk 00:48:43]} {[%emt
00:01:35]} f5 {[%clk 00:46:53]} {[%emt 00:00:03]} 15. Bg5 {[%clk 00:33:29]}
{[%emt 00:15:45]} Qd5 {[%clk 00:40:15]} {[%emt 00:07:08]} 16. Nf4 {[%clk
00:27:15]} {[%emt 00:06:44]} Qxe4 {[%clk 00:30:13]} {[%emt 00:10:32]} 17. f3
{[%clk 00:27:12]} {[%emt 00:00:33]} Qxe1 {[%clk 00:30:07]} {[%emt 00:00:36]} 18.
Raxe1 {[%clk 00:27:36]} {[%emt 00:00:06]} h6 {[%clk 00:30:27]} {[%emt
00:00:11]} 19. Be7 {[%clk 00:25:51]} {[%emt 00:02:14]} Kf7 {[%clk 00:29:29]}
{[%emt 00:01:29]} 20. Bb4 {[%clk 00:21:07]} {[%emt 00:05:14]} g5 {[%clk
00:27:08]} {[%emt 00:02:51]} 21. Rxe8 {[%clk 00:19:37]} {[%emt 00:02:00]} Rxe8
{[%clk 00:26:58]} {[%emt 00:00:39]} 22. fxg4 {[%clk 00:19:39]} {[%emt
00:00:29]} gxf4 {[%clk 00:27:18]} {[%emt 00:00:10]} 23. Rxf4 {[%clk 00:19:58]}
{[%emt 00:00:11]} Re4 {[%clk 00:24:25]} {[%emt 00:03:23]} 24. Rxe4 {[%clk
00:15:19]} {[%emt 00:05:10]} fxe4 {[%clk 00:24:50]} {[%emt 00:00:04]} 25. g3
{[%clk 00:15:45]} {[%emt 00:00:05]} Kg6 {[%clk 00:17:59]} {[%emt 00:07:20]} 26.
Kg2 {[%clk 00:15:33]} {[%emt 00:00:42]} a5 {[%clk 00:18:14]} {[%emt 00:00:16]}
27. Bd2 {[%clk 00:15:05]} {[%emt 00:00:58]} a4 {[%clk 00:18:38]} {[%emt
00:00:05]} 28. Bf4 {[%clk 00:14:48]} {[%emt 00:00:47]} Bd4 {[%clk 00:18:51]}
{[%emt 00:00:17]} 29. b3 {[%clk 00:14:54]} {[%emt 00:00:25]} axb3 {[%clk
00:19:15]} {[%emt 00:00:06]} 30. axb3 {[%clk 00:15:15]} {[%emt 00:00:09]} b5
{[%clk 00:19:30]} {[%emt 00:00:15]} 31. Kf1 {[%clk 00:15:22]} {[%emt 00:00:23]}
Bc5 {[%clk 00:18:15]} {[%emt 00:01:45]} 32. Ke2 {[%clk 00:15:35]} {[%emt
00:00:16]} Bd4 {[%clk 00:18:38]} {[%emt 00:00:07]} 33. Be3 {[%clk 00:14:14]}
{[%emt 00:01:51]} Bb2 {[%clk 00:18:04]} {[%emt 00:01:04]} 34. Kf2 {[%clk
00:09:52]} {[%emt 00:04:52]} Bc3 {[%clk 00:16:01]} {[%emt 00:02:33]} 35. Bc5
{[%clk 00:07:42]} {[%emt 00:02:40]} Kg5 {[%clk 00:16:18]} {[%emt 00:00:13]} 1-0